fUST/lending_fUST_20251202
["ID","MTS","AMOUNT","RATE_DAILY","PERIOD"]
[395340944,1764635004203,-500.0,0.00036118,60]
[395340945,1764635004274,-500.0,0.00036118,60]
[395340946,1764635004341,-500.0,0.00036118,60]
[395340947,1764635004411,-505.51762695,0.00036118,60]
[395340948,1764635004480,-500.0,0.00036118,60]
[395340951,1764635004546,-509.13,0.00036118,60]
[395340954,1764635004617,-500.0,0.00036118,60]
[395340956,1764635004688,-500.0,0.00036118,60]
[395340958,1764635004761,-500.0,0.00036118,60]
[395340959,1764635004836,-500.0,0.00036118,60]
[395340962,1764635004909,-500.0,0.00036118,60]
[395340965,1764635004977,-271.57,0.00036118,60]
[395340968,1764635005044,-502.88117056,0.00036118,60]
[395340969,1764635005113,-500.0,0.00036118,60]
[395340970,1764635005180,-500.0,0.00036118,60]
[395340971,1764635005251,-500.0,0.00036118,60]
[395340972,1764635005321,-341.66484922,0.00036118,60]
[395340973,1764635005394,-500.0,0.00036118,60]
[395340974,1764635005461,-501.25439732,0.00036118,60]
[395340975,1764635005525,-500.0,0.00036118,60]
[395340976,1764635005596,-534.73,0.00036118,60]
[395340977,1764635005668,-500.0,0.00036118,60]
[395340978,1764635005742,-500.0,0.00036118,60]
[395340979,1764635005815,-500.0,0.00036118,60]
[395340980,1764635005884,-502.25595403,0.00036118,60]
[395340981,1764635005950,-500.0,0.00036118,60]
[395340982,1764635006018,-500.0,0.00036118,60]
[395340983,1764635006082,-509.25816006,0.00036118,60]
[395340984,1764635006147,-500.0,0.00036118,60]
[395340985,1764635006217,-500.63117054,0.00036118,60]
[395340986,1764635006283,-500.000001,0.00036118,60]
[395340987,1764635006350,-500.0,0.00036118,60]
[395340988,1764635006417,-515.31584877,0.00036118,60]
[395340989,1764635006485,-500.0,0.00036118,60]
[395340990,1764635006557,-500.0,0.00036118,60]
[395340991,1764635006631,-500.0,0.00036118,60]
[395340992,1764635006704,-500.0,0.00036118,60]
[395340993,1764635006783,-500.0,0.00036118,60]
[395340994,1764635006862,-500.0,0.00036118,60]
[395340995,1764635006935,-510.41704248,0.00036118,60]
[395340996,1764635006998,-500.0,0.00036118,60]
[395340997,1764635007058,-500.0,0.00036118,60]
[395340998,1764635007124,-500.0,0.00036118,60]
[395340999,1764635007188,-500.0,0.00036118,60]
[395341000,1764635007251,-500.0,0.00036118,60]
[395341001,1764635007318,-501.83804521,0.00036118,60]
[395341002,1764635007385,-500.0,0.00036118,60]
[395341003,1764635007453,-501.24471476,0.00036118,60]
[395341004,1764635007522,-490.0,0.00036118,60]
[395341005,1764635007592,-500.0,0.00036118,60]
[395341006,1764635007662,-500.0,0.00036118,60]
[395341007,1764635007727,-502.62561268,0.00036118,60]
[395341008,1764635007796,-500.0,0.00036118,60]
[395341009,1764635007866,-500.0,0.00036118,60]
[395341010,1764635007934,-501.069791,0.00036118,60]
[395341011,1764635008003,-500.0,0.00036118,60]
[395341012,1764635008069,-500.0,0.00036118,60]
[395341013,1764635008139,-500.0,0.00036118,60]
[395341014,1764635008207,-500.0,0.00036118,60]
[395341015,1764635008274,-500.0,0.00036118,60]
[395341016,1764635008345,-151.30360731,0.00036118,60]
[395341017,1764635008417,-500.0,0.00036118,60]
[395341018,1764635008488,-529.89,0.00036118,60]
[395341019,1764635008554,-500.0,0.00036118,60]
[395341020,1764635008625,-500.0,0.00036118,60]
[395341021,1764635008693,-500.0,0.00036118,60]
[395341022,1764635008754,-502.33874268,0.00036118,60]
[395341023,1764635008820,-500.0,0.00036118,60]
[395341024,1764635008887,-500.0,0.00036118,60]
[395341025,1764635008952,-519.26531954,0.00036118,60]
[395341026,1764635009020,-500.0,0.00036118,60]
[395341027,1764635009087,-502.4278189,0.00036118,60]
[395341028,1764635009161,-501.70960388,0.00036118,60]
[395341029,1764635009233,-500.54266942,0.00036118,60]
[395341030,1764635009307,-500.0,0.00036118,60]
[395341031,1764635009381,-500.0,0.00036118,60]
[395341032,1764635009450,-517.66591582,0.00036118,60]
[395341033,1764635009518,-500.29792171,0.00036118,60]
[395341034,1764635009587,-502.41943731,0.00036118,60]
[395341035,1764635009653,-502.31641223,0.00036118,60]
[395341036,1764635009720,-501.44793002,0.00036118,60]
[395341037,1764635009784,-514.4579747,0.00036118,60]
[395341038,1764635009854,-457.3112282,0.00036118,60]
[395341039,1764635009920,-501.6552754,0.00036118,60]
[395341040,1764635009985,-500.77046135,0.00036118,60]
[395341041,1764635010052,-500.0,0.00036118,60]
[395341042,1764635010119,-500.0,0.00036118,60]
[395341043,1764635010188,-500.62040679,0.00036118,60]
[395341044,1764635010259,-505.54840595,0.00036118,60]
[395341045,1764635010330,-500.0,0.00036118,60]
[395341046,1764635010401,-158.37886985,0.00036118,60]
[395341047,1764635010470,-500.0,0.00036118,60]
[395341048,1764635010539,-500.0,0.00036118,60]
[395341049,1764635010622,-502.07269625,0.00036118,60]
[395341050,1764635010699,-628.33,0.00036118,60]
[395341051,1764635010776,-503.38165883,0.00036118,60]
[395341052,1764635010852,-503.42793037,0.00036118,60]
[395341053,1764635010924,-502.13725691,0.00036118,60]
[395341054,1764635010995,-500.58035301,0.00036118,60]
[395341055,1764635011227,-501.42470666,0.00036118,60]
[395341056,1764635011298,-511.70893146,0.00036118,60]
[395341057,1764635011366,-500.0,0.00036118,60]
[395341058,1764635011435,-501.00071528,0.00036118,60]
[395341059,1764635011508,-476.58653621,0.00036118,60]
[395341060,1764635011586,-507.73910819,0.00036118,60]
[395341061,1764635011665,-646.35885612,0.00036118,60]
[395341062,1764635011737,-500.99243069,0.00036118,60]
[395341063,1764635011807,-502.89026269,0.00036118,60]
[395341064,1764635011877,-502.86680281,0.00036118,60]
[395341065,1764635011951,-501.51051919,0.00036118,60]
[395341066,1764635012015,-540.12049803,0.00036118,60]
[395341067,1764635012078,-501.89821657,0.00036118,60]
[395341068,1764635012145,-502.63365235,0.00036118,60]
[395341069,1764635012210,-500.63287696,0.00036118,60]
[395341070,1764635012274,-500.0,0.00036118,60]
[395341071,1764635012346,-501.38320235,0.00036118,60]
[395341072,1764635012420,-500.0,0.00036118,60]
[395341073,1764635012500,-503.13407108,0.00036118,60]
[395341074,1764635012575,-502.35995571,0.00036118,60]
[395341075,1764635012643,-500.0,0.00036118,60]
[395341076,1764635012710,-500.89071206,0.00036118,60]
[395341077,1764635012777,-501.97404939,0.00036118,60]
[395341078,1764635012842,-500.4831891,0.00036118,60]
[395341079,1764635012909,-501.41068192,0.00036118,60]
[395341080,1764635012975,-500.0,0.00036118,60]
[395341081,1764635013040,-500.41213573,0.00036118,60]
[395341082,1764635013106,-500.42800732,0.00036118,60]
[395341083,1764635013176,-502.41895288,0.00036118,60]
[395341084,1764635013243,-502.00957988,0.00036118,60]
[395341085,1764635013311,-501.39821754,0.00036118,60]
[395341086,1764635013378,-500.0,0.00036118,60]
[395341087,1764635013440,-500.91811713,0.00036118,60]
[395341088,1764635013505,-500.89003839,0.00036118,60]
[395341089,1764635013574,-500.0,0.00036118,60]
[395341090,1764635013647,-500.0,0.00036118,60]
[395341091,1764635013722,-500.0,0.00036118,60]
[395341092,1764635013794,-500.0,0.00036118,60]
[395341093,1764635013868,-357.05,0.00036118,60]
[395341094,1764635013939,-500.0,0.00036118,60]
[395341095,1764635014009,-500.0,0.00036118,60]
[395341096,1764635014078,-581.72,0.00036118,60]
[395341097,1764635014154,-500.0,0.00036118,30]
[395341098,1764635014225,-500.83761877,0.00036118,60]
[395341099,1764635014297,-500.0,0.00036118,60]
[395341100,1764635014364,-501.94092332,0.00036118,60]
[395341101,1764635014433,-500.376486,0.00036118,60]
[395341102,1764635014504,-501.89689551,0.00036118,60]
[395341103,1764635014573,-500.52393551,0.00036118,60]
[395341104,1764635014645,-235.8328781,0.00036118,60]
[395341105,1764635014714,-500.0,0.00036118,60]
[395341106,1764635014783,-501.10860858,0.00036118,60]
[395341107,1764635014849,-500.82154925,0.00036118,60]
[395341108,1764635014914,-502.58996763,0.00036118,60]
[395341109,1764635014984,-500.0,0.00036118,60]
[395341110,1764635015048,-500.0,0.00036118,60]
[395341111,1764635015116,-500.9822885,0.00036118,60]
[395341112,1764635015183,-500.0,0.00036118,60]
[395341113,1764635015248,-501.0694586,0.00036118,60]
[395341114,1764635015317,-500.0,0.00036118,60]
[395341115,1764635015390,-501.10236234,0.00036118,60]
[395341116,1764635015461,-500.0,0.00036118,60]
[395341117,1764635015529,-500.0,0.00036118,60]
[395341118,1764635015600,-501.34190936,0.00036118,60]
[395341119,1764635015673,-500.0,0.00036118,60]
[395341120,1764635015738,-500.0,0.00036118,60]
[395341121,1764635015815,-500.0,0.00036118,60]
[395341122,1764635015889,-501.92600524,0.00036118,60]
[395341123,1764635015965,-514.36108588,0.00036118,60]
[395341124,1764635016039,-500.0,0.00036118,60]
[395341125,1764635016115,-500.0,0.00036118,60]
[395341127,1764635016193,-500.8112025,0.00036118,60]
[395341128,1764635016272,-500.0,0.00036118,60]
[395341129,1764635016370,-500.0,0.00036118,60]
[395341130,1764635016453,-500.0,0.00036118,60]
[395341131,1764635016526,-500.0,0.00036118,60]
[395341132,1764635016596,-501.08184619,0.00036118,60]
[395341133,1764635016672,-500.0,0.00036118,60]
[395341134,1764635016743,-500.0,0.00036118,60]
[395341135,1764635016813,-500.0,0.00036118,60]
[395341136,1764635016882,-500.92484791,0.00036118,60]
[395341137,1764635016953,-500.0,0.00036118,60]
[395341138,1764635017023,-500.0,0.00036118,60]
[395341139,1764635017089,-500.0,0.00036118,60]
[395341140,1764635017159,-500.0,0.00036118,30]
[395341141,1764635017226,-503.3541807,0.00036118,60]
[395341142,1764635017293,-500.53436246,0.00036118,60]
[395341143,1764635017360,-500.0,0.00036118,60]
[395341144,1764635017425,-500.0,0.00036118,60]
[395341145,1764635017490,-500.41885103,0.00036118,60]
[395341146,1764635017554,-500.44302522,0.00036118,60]
[395341147,1764635017619,-502.79559391,0.00036118,60]
[395341148,1764635017688,-500.6000663,0.00036118,60]
[395341149,1764635017755,-500.2727925,0.00036118,60]
[395341150,1764635017823,-500.0,0.00036118,60]
[395341151,1764635017892,-500.0,0.00036118,60]
[395341152,1764635017954,-507.36,0.00036118,60]
[395341153,1764635018017,-500.0,0.00036118,60]
[395341154,1764635018086,-502.1323453,0.00036118,60]
[395341155,1764635018162,-500.0,0.00036118,60]
[395341156,1764635018238,-500.0,0.00036118,60]
[395341157,1764635018316,-247.88,0.00036118,60]
[395341158,1764635018395,-500.0,0.00036118,60]
[395341159,1764635018469,-500.0,0.00036118,60]
[395341160,1764635018693,-500.0,0.00036118,60]
[395341161,1764635018764,-500.08715981,0.00036118,60]
[395341162,1764635018832,-500.0,0.00036118,60]
[395341163,1764635018898,-500.0,0.00036118,60]
[395341164,1764635018965,-500.28821601,0.00036118,60]
[395341165,1764635019035,-535.98,0.00036118,60]
[395341166,1764635019107,-500.0,0.00036118,30]
[395341167,1764635019181,-500.0,0.00036118,60]
[395341168,1764635019250,-552.16684576,0.00036118,60]
[395341169,1764635019318,-500.0,0.00036118,60]
[395341170,1764635019385,-503.22722531,0.00036118,60]
[395341171,1764635019445,-501.0348489,0.00036118,60]
[395341172,1764635019509,-500.76363389,0.00036118,60]
[395341173,1764635019574,-500.0,0.00036118,60]
[395341174,1764635019636,-516.01506656,0.00036118,60]
[395341175,1764635019702,-500.0,0.00036118,60]
[395341176,1764635019766,-500.0,0.00036118,60]
[395341177,1764635019835,-548.35,0.00036118,60]
[395341178,1764635019906,-500.0,0.00036118,60]
[395341179,1764635019972,-505.00572071,0.00036118,60]
[395341180,1764635020042,-505.7139399,0.00036118,60]
[395341181,1764635020110,-500.0,0.00036118,60]
[395341182,1764635020178,-500.93563766,0.00036118,60]
[395341183,1764635020246,-500.0,0.00036118,60]
[395341184,1764635020313,-500.0,0.00036118,30]
[395341185,1764635020381,-500.09353165,0.00036118,60]
[395341186,1764635020447,-500.5873481,0.00036118,30]
[395341187,1764635020510,-500.0,0.00036118,60]
[395341188,1764635020573,-500.0,0.00036118,60]
[395341189,1764635020638,-500.0,0.00036118,60]
[395341190,1764635020701,-500.0,0.00036118,60]
[395341191,1764635020767,-500.0,0.00036118,60]
[395341192,1764635020833,-500.0,0.00036118,60]
[395341193,1764635020897,-500.57709869,0.00036118,60]
[395341194,1764635020961,-500.0,0.00036118,60]
[395341195,1764635021026,-599.43544125,0.00036118,60]
[395341196,1764635021090,-500.0,0.00036118,60]
[395341197,1764635021159,-502.23,0.00036118,60]
[395341198,1764635021229,-500.0,0.00036118,60]
[395341199,1764635021293,-500.0,0.00036118,60]
[395341200,1764635021362,-500.0,0.00036118,60]
[395341201,1764635021429,-500.0,0.00036118,60]
[395341202,1764635021492,-501.88479233,0.00036118,60]
[395341203,1764635021558,-500.0,0.00036118,60]
[395341204,1764635021626,-500.0,0.00036118,60]
[395341205,1764635021696,-500.0,0.00036118,60]
[395341206,1764635021766,-500.0,0.00036118,60]
[395341207,1764635021832,-500.35815464,0.00036118,20]
[395341208,1764635021899,-161.0916598,0.00036118,60]
[395341209,1764635021963,-500.0,0.00036118,60]
[395341210,1764635022023,-500.0,0.00036118,60]
[395341211,1764635022086,-500.0,0.00036118,60]
[395341212,1764635022150,-500.0,0.00036118,60]
[395341213,1764635022215,-500.0,0.00036118,60]
[395341214,1764635022281,-500.32991798,0.00036118,60]
[395341215,1764635022349,-500.0,0.00036118,60]
[395341216,1764635022415,-500.0,0.00036118,60]
[395341217,1764635022480,-287.98,0.00036118,60]
[395341218,1764635022545,-500.0,0.00036118,60]
[395341219,1764635022613,-500.0,0.00036118,60]
[395341220,1764635022683,-500.0,0.00036118,60]
[395341221,1764635022747,-500.0,0.00036118,60]
[395341222,1764635022815,-547.0,0.00036118,60]
[395341223,1764635022885,-500.0,0.00036118,60]
[395341224,1764635022950,-500.0,0.00036118,60]
[395341225,1764635023017,-502.28801929,0.00036118,60]
[395341226,1764635023083,-504.50026843,0.00036118,60]
[395341227,1764635023152,-500.0,0.00036118,60]
[395341228,1764635023222,-648.14,0.00036118,60]
[395341229,1764635023294,-502.8578475,0.00036118,60]
[395341230,1764635023367,-500.0,0.00036118,60]
[395341231,1764635023440,-500.0,0.00036118,60]
[395341232,1764635023511,-500.90735979,0.00036118,60]
[395341233,1764635023579,-500.0,0.00036118,60]
[395341234,1764635023649,-500.0,0.00036118,60]
[395341235,1764635023718,-500.0,0.00036118,60]
[395341236,1764635023791,-500.0,0.00036118,60]
[395341237,1764635023871,-476.55,0.00036118,60]
[395341238,1764635023950,-163.96832027,0.00036118,60]
[395341239,1764635024027,-502.47188581,0.00036118,60]
[395341240,1764635024105,-500.0,0.00036118,60]
[395341241,1764635024186,-244.34,0.00036118,60]
[395341242,1764635024263,-500.0,0.00036118,60]
[395341243,1764635024345,-500.0,0.00036118,60]
[395341244,1764635024425,-500.0,0.00036118,60]
[395341245,1764635024496,-505.12687056,0.00036118,60]
[395341246,1764635024566,-500.0,0.00036118,60]
[395341247,1764635024637,-500.0,0.00036118,60]
[395341248,1764635024705,-514.47125023,0.00036118,60]
[395341249,1764635024778,-500.0,0.00036118,60]
[395341250,1764635024847,-500.16838807,0.00036118,60]
[395341251,1764635024916,-500.0,0.00036118,60]
[395341252,1764635024982,-502.55095966,0.00036118,60]
[395341253,1764635025047,-500.0,0.00036118,60]
[395341254,1764635025118,-501.24278415,0.00036118,60]
[395341255,1764635025190,-500.0,0.00036118,60]
[395341256,1764635025259,-500.21206657,0.00036118,60]
[395341257,1764635025325,-500.0,0.00036118,60]
[395341258,1764635025396,-500.0,0.00036118,60]
[395341259,1764635025461,-503.0324408,0.00036118,60]
[395341260,1764635025527,-500.0,0.00036118,60]
[395341261,1764635025595,-561.71635776,0.00036118,60]
[395341262,1764635025663,-500.0,0.00036118,60]
[395341263,1764635025730,-500.0,0.00036118,60]
[395341264,1764635026011,-500.0,0.00036118,60]
[395341265,1764635026083,-500.0,0.00036118,60]
[395341266,1764635026155,-500.0,0.00036118,60]
[395341267,1764635026226,-501.99290016,0.00036118,60]
[395341268,1764635026302,-500.0,0.00036118,60]
[395341269,1764635026376,-556.86,0.00036118,60]
[395341270,1764635026451,-500.0,0.00036118,60]
[395341271,1764635026522,-500.0,0.00036118,60]
[395341272,1764635026594,-501.83475893,0.00036118,60]
[395341273,1764635026667,-500.24530306,0.00036118,60]
[395341274,1764635026737,-500.0,0.00036118,60]
[395341275,1764635026809,-500.0,0.00036118,60]
[395341276,1764635026883,-500.0,0.00036118,60]
[395341277,1764635026959,-500.0,0.00036118,60]
[395341278,1764635027034,-503.02127939,0.00036118,60]
[395341279,1764635027106,-500.0,0.00036118,60]
[395341280,1764635027182,-500.0,0.00036118,60]
[395341281,1764635027256,-575.27,0.00036118,60]
[395341282,1764635027333,-500.0,0.00036118,60]
[395341283,1764635027410,-500.0,0.00036118,60]
[395341284,1764635027481,-611.38,0.00036118,60]
[395341285,1764635027553,-500.0,0.00036118,60]
[395341286,1764635027622,-500.0,0.00036118,60]
[395341287,1764635027694,-500.30719376,0.00036118,60]
[395341288,1764635027764,-500.0,0.00036118,60]
[395341289,1764635027835,-500.0,0.00036118,60]
[395341290,1764635027906,-500.0,0.00036118,60]
[395341291,1764635027974,-500.0,0.00036118,60]
[395341292,1764635028064,-500.0,0.00036118,60]
[395341293,1764635028138,-500.0,0.00036118,60]
[395341294,1764635028211,-500.0,0.00036118,60]
[395341295,1764635028284,-501.26352705,0.00036118,60]
[395341296,1764635028359,-500.0,0.00036118,60]
[395341297,1764635028432,-500.48369459,0.00036118,60]
[395341298,1764635028504,-500.0,0.00036118,60]
[395341299,1764635028583,-500.0,0.00036118,60]
[395341300,1764635028656,-500.0,0.00036118,60]
[395341301,1764635028725,-500.0,0.00036118,60]
[395341302,1764635028803,-500.0,0.00036118,60]
[395341303,1764635028877,-506.53282819,0.00036118,60]
[395341304,1764635028944,-415.52671301,0.00036118,60]
[395341305,1764635029015,-500.0,0.00036118,60]
[395341306,1764635029084,-500.7785828,0.00036118,60]
[395341307,1764635029153,-515.2542375,0.00036118,60]
[395341308,1764635029227,-500.0,0.00036118,60]
[395341309,1764635029298,-500.0,0.00036118,60]
[395341310,1764635029371,-500.0,0.00036118,60]
[395341311,1764635029444,-264.89,0.00036118,60]
[395341312,1764635029506,-453.30610493,0.00036118,60]
[395341313,1764635029579,-500.0,0.00036118,60]
[395341314,1764635029654,-552.81986489,0.00036118,60]
[395341315,1764635029715,-500.0,0.00036118,60]
[395341316,1764635029785,-500.0,0.00036118,60]
[395341317,1764635029856,-500.0,0.00036118,60]
[395341318,1764635029918,-190.77487129,0.00036118,60]
[395341319,1764635029984,-500.0,0.00036118,60]
[395341320,1764635030050,-538.06,0.00036118,60]
[395341321,1764635030121,-460.0074436,0.00036118,60]
[395341322,1764635030192,-500.0,0.00036118,60]
[395341323,1764635030260,-500.0,0.00036118,60]
[395341324,1764635030331,-501.59503825,0.00036118,60]
[395341325,1764635030405,-500.0,0.00036118,30]
[395341326,1764635030478,-500.0,0.00036118,60]
[395341327,1764635030545,-500.0,0.00036118,60]
[395341328,1764635030610,-500.0,0.00036118,60]
[395341329,1764635030677,-500.0,0.00036118,60]
[395341330,1764635030739,-536.27715754,0.00036118,60]
[395341331,1764635030804,-500.0,0.00036118,60]
[395341332,1764635030869,-500.0,0.00036118,60]
[395341333,1764635030929,-500.0,0.00036118,60]
[395341334,1764635030991,-500.0,0.00036118,60]
[395341335,1764635031054,-500.64158031,0.00036118,60]
[395341336,1764635031119,-501.59912961,0.00036118,60]
[395341337,1764635031189,-500.0,0.00036118,60]
[395341338,1764635031258,-500.0,0.00036118,60]
[395341339,1764635031330,-500.0,0.00036118,60]
[395341340,1764635031402,-500.0,0.00036118,60]
[395341341,1764635031473,-500.0,0.00036118,60]
[395341342,1764635031541,-500.0,0.00036118,60]
[395341343,1764635031613,-500.0,0.00036118,60]
[395341344,1764635031685,-500.0,0.00036118,60]
[395341345,1764635031754,-500.0,0.00036118,60]
[395341346,1764635031828,-500.0,0.00036118,60]
[395341347,1764635031908,-500.0,0.00036118,60]
[395341348,1764635031981,-500.0,0.00036118,60]
[395341349,1764635032054,-500.0,0.00036118,60]
[395341350,1764635032126,-500.0,0.00036118,60]
[395341351,1764635032202,-500.0,0.00036118,60]
[395341352,1764635032273,-574.18,0.00036118,60]
[395341353,1764635032343,-500.0,0.00036118,60]
[395341354,1764635032410,-500.0,0.00036118,60]
[395341355,1764635032477,-500.0,0.00036118,60]
[395341356,1764635032542,-500.0,0.00036118,60]
[395341357,1764635032604,-500.0,0.00036118,60]
[395341358,1764635032668,-500.0,0.00036118,60]
[395341359,1764635032736,-500.0,0.00036118,60]
[395341360,1764635032803,-500.0,0.00036118,60]
[395341361,1764635032867,-500.0,0.00036118,60]
[395341362,1764635032932,-500.0,0.00036118,60]
[395341363,1764635032998,-528.69,0.00036118,60]
[395341365,1764635033063,-500.0,0.00036118,60]
[395341366,1764635033133,-510.1585167,0.00036118,60]
[395341367,1764635033204,-500.0,0.00036118,60]
[395341368,1764635033279,-500.0,0.00036118,60]
[395341369,1764635033537,-500.0,0.00036118,60]
[395341370,1764635033613,-530.54325078,0.00036118,60]
[395341371,1764635033686,-500.0,0.00036118,60]
[395341372,1764635033759,-500.0,0.00036118,60]
[395341373,1764635033831,-500.0,0.00036118,60]
[395341374,1764635033901,-347.7,0.00036118,60]
[395341375,1764635033974,-500.0,0.00036118,60]
[395341376,1764635034045,-500.0,0.00036118,60]
[395341377,1764635034120,-500.0,0.00036118,60]
[395341378,1764635034192,-500.0,0.00036118,60]
[395341379,1764635034265,-500.0,0.00036118,60]
[395341380,1764635034339,-500.0,0.00036118,60]
[395341381,1764635034412,-500.0,0.00036118,60]
[395341382,1764635034482,-501.09627357,0.00036118,60]
[395341383,1764635034551,-500.0,0.00036118,60]
[395341384,1764635034621,-500.0,0.00036118,60]
[395341385,1764635034689,-500.0,0.00036118,60]
[395341386,1764635034757,-500.0,0.00036118,60]
[395341387,1764635034823,-500.0,0.00036118,60]
[395341388,1764635034891,-500.0,0.00036118,60]
[395341389,1764635034959,-381.77587065,0.00036118,60]
[395341390,1764635035025,-461.541603,0.00036118,60]
[395341391,1764635035098,-500.16353874,0.00036118,60]
[395341392,1764635035169,-500.0,0.00036118,60]
[395341393,1764635035238,-500.0,0.00036118,60]
[395341394,1764635035306,-503.08352002,0.00036118,60]
[395341395,1764635035375,-500.0,0.00036118,60]
[395341396,1764635035446,-500.0,0.00036118,60]
[395341397,1764635035509,-500.0,0.00036118,60]
[395341398,1764635035578,-500.0,0.00036118,60]
[395341399,1764635035648,-612.37724435,0.00036118,60]
[395341400,1764635035716,-500.0,0.00036118,60]
[395341401,1764635035788,-500.0,0.00036118,60]
[395341402,1764635035859,-500.0,0.00036118,60]
[395341403,1764635035929,-500.0,0.00036118,60]
[395341404,1764635035998,-500.66477855,0.00036118,60]
[395341405,1764635036064,-418.34489946,0.00036118,60]
[395341406,1764635036136,-500.14117234,0.00036118,60]
[395341407,1764635036208,-500.0,0.00036118,60]
[395341408,1764635036275,-500.0,0.00036118,60]
[395341409,1764635036347,-500.0,0.00036118,60]
[395341410,1764635036418,-500.0,0.00036118,60]
[395341411,1764635036487,-500.0,0.00036118,60]
[395341412,1764635036560,-478.02396197,0.00036118,60]
[395341413,1764635036632,-626.69,0.00036118,60]
[395341414,1764635036700,-500.0,0.00036118,60]
[395341415,1764635036772,-502.60158273,0.00036118,60]
[395341416,1764635036842,-500.0,0.00036118,60]
[395341417,1764635036916,-500.0,0.00036118,60]
[395341418,1764635036982,-500.0,0.00036118,60]
[395341419,1764635037045,-500.0,0.00036118,60]
[395341420,1764635037111,-500.0,0.00036118,60]
[395341421,1764635037177,-500.0,0.00036118,60]
[395341422,1764635037243,-238.58,0.00036118,60]
[395341423,1764635037311,-500.0,0.00036118,60]
[395341424,1764635037380,-264.91452658,0.00036118,60]
[395341425,1764635037446,-500.0,0.00036118,60]
[395341426,1764635037511,-500.0,0.00036118,60]
[395341427,1764635037574,-505.60199692,0.00036118,60]
[395341428,1764635037640,-500.0,0.00036118,60]
[395341429,1764635037710,-500.98253627,0.00036118,60]
[395341430,1764635037781,-500.0,0.00036118,60]
[395341431,1764635037847,-500.0,0.00036118,60]
[395341432,1764635037911,-500.0,0.00036118,60]
[395341433,1764635037972,-500.0,0.00036118,60]
[395341434,1764635038034,-500.0,0.00036118,60]
[395341435,1764635038107,-500.0,0.00036118,60]
[395341436,1764635038180,-500.30399256,0.00036118,60]
[395341437,1764635038251,-500.0,0.00036118,60]
[395341438,1764635038320,-500.89553265,0.00036118,60]
[395341439,1764635038395,-500.0,0.00036118,60]
[395341440,1764635038462,-500.0,0.00036118,60]
[395341441,1764635038527,-500.0,0.00036118,60]
[395341442,1764635038592,-500.0,0.00036118,60]
[395341443,1764635038655,-501.05906801,0.00036118,60]
[395341444,1764635038716,-647.93716734,0.00036118,60]
[395341445,1764635038777,-500.0,0.00036118,60]
[395341446,1764635038840,-500.0,0.00036118,60]
[395341447,1764635038899,-500.0,0.00036118,60]
[395341448,1764635038970,-500.0,0.00036118,60]
[395341449,1764635039060,-500.0,0.00036118,60]
[395341450,1764635039131,-424.22,0.00036118,60]
[395341451,1764635039204,-500.0,0.00036118,60]
[395341452,1764635039274,-500.0,0.00036118,60]
[395341453,1764635039346,-500.0,0.00036118,60]
[395341454,1764635039414,-530.59,0.00036118,60]
[395341455,1764635039479,-460.4,0.00036118,60]
[395341456,1764635039545,-500.0,0.00036118,60]
[395341457,1764635039611,-500.0,0.00036118,60]